[Event "Turkish-ch Youth U13 2024"]
[Site "Belek Antalya"]
[Date "2024.01.25"]
[Round "7"]
[White "Celik, Ali Alper"]
[Black "Yardimci, Can"]
[Result "1-0"]
[ECO "B51"]
[WhiteElo "2222"]
[BlackElo "1901"]
[Annotator "NA RC"]
[PlyCount "101"]
[EventDate "2024.01.21"]
[EventType "swiss"]
[EventCountry "TUR"]
[SourceTitle "playchess.com"]
[Source "ChessBase"]
[SourceQuality "1"]
[TimeControl "5400+30"]

1. e4 {[%emt 0:01:00]} c5 {[%emt 0:02:00]} 2. Nf3 {[%emt 0:00:30]} d6 {[%emt 0:00:30]} 3. Bb5+ {[%emt 0:00:00]} Nd7 {[%emt 0:02:30]} 4. O-O {[%emt 0:00:00]} Ngf6 {[%emt 0:00:30]} 5. Re1 {[%emt 0:01:30]} a6 {[%emt 0:02:30]} 6. Bd3 {[%emt 0:01:30] B51: Sizilianisch (Rossolimo-Variante).} g6 {[%emt 0:01:30]} 7. c3 {[%emt 0:00:00]} b5 {[%emt 0:01:30]} 8. Bc2 {[%emt 0:02:00]} c4 {[%emt 0:01:30]} 9. a4 {[%emt 0:00:30]} Bb7 {[%emt 0:00:30]} 10. d4 {[%emt 0:00:00]} cxd3 {[%emt 0:00:30]} 11. Qxd3 {[%emt 0:00:00]} Nc5 {[%emt 0:08:30]} 12. Qe2 {[%emt 0:00:30]} Bg7 {[%emt 0:02:30]} 13. axb5 {[%emt 0:01:30]} O-O {[%emt 0:01:30]} 14. b4 {[%emt 0:03:30]} Ncxe4 {[%emt 0:06:30]} 15. bxa6 {[%emt 0:00:30]} d5 {[%emt 0:01:30]} 16. Ra3 {[%emt 0:12:30]} Bc8 {[%emt 0:01:30]} 17. Be3 {[%emt 0:30:30]} ({Don't play} 17. a7 Qc7) 17... Ng4 {[%emt 0:09:30]} 18. Rd1 {[%emt 0:07:30]} (18. b5 $18) 18... Nxe3 {[%emt 0:04:30]} 19. Qxe3 {[%emt 0:00:30]} Nd6 {[%emt 0:01:30]} 20. Bd3 $16 {[%emt 0:04:30]} Qc7 {[%emt 0:06:30]} 21. Nbd2 {[%emt 0:06:30]} Bd7 {[%emt 0:12:30]} 22. Qxe7 {[%emt 0:04:30]} Rfe8 {[%emt 0:00:30]} 23. Qh4 {[%emt 0:00:30]} Bb5 {[%emt 0:06:30]} 24. Nf1 {[%emt 0:05:42]} Bxd3 {[%emt 0:01:30]} 25. Rxd3 {[%emt 0:00:01]} Nb5 {[%emt 0:01:30]} 26. Ra5 {[%emt 0:07:45]} Nxc3 {[%emt 0:01:30]} 27. Rc5 {[%emt 0:03:05]} Ne2+ {[%emt 0:00:30]} 28. Kh1 {[%emt 0:00:01]} Qb6 {[%emt 0:03:37]} 29. Rcxd5 {[%emt 0:00:05]} Bf6 {[%emt 0:05:50]} 30. Qc4 {[%emt 0:01:35]} Qxf2 {[%emt 0:03:44]} 31. Rd1 {[%emt 0:00:09]} Rac8 {[%emt 0:04:08]} 32. Rc5 {[%emt 0:02:45]} Rcd8 {[%emt 0:01:27]} 33. Rc7 {[%emt 0:02:53]} Rf8 {[%emt 0:00:41]} 34. Re1 {[%emt 0:00:06]} Nd4 {[%emt 0:02:27]} 35. N1d2 {[%emt 0:00:12]} Ne6 {[%emt 0:01:42]} 36. Ne4 {[%emt 0:01:05]} Qb2 {[%emt 0:01:27]} 37. Nxf6+ {[%emt 0:01:24]} Qxf6 {[%emt 0:00:30]} 38. Rc6 {[%emt 0:00:00]} Qe7 {[%emt 0:00:35]} 39. h3 {[%emt 0:01:12]} h5 {[%emt 0:01:05]} 40. b5 {[%emt 0:00:12]} Qd7 {[%emt 0:00:25]} 41. Rc1 {[%emt 0:01:23]} Ng7 {[%emt 0:00:37]} 42. Rxg6 {[%emt 0:00:27]} Qe7 {[%emt 0:00:40]} 43. Re1 {[%emt 0:00:52]} Qa7 {[%emt 0:00:09]} 44. b6 {[%emt 0:00:29]} Qd7 {[%emt 0:00:08]} 45. Rg5 {[%emt 0:00:35]} Rfe8 {[%emt 0:00:37]} 46. Rge5 {[%emt 0:00:30]} Rxe5 {[%emt 0:00:30]} 47. Nxe5 {[%emt 0:00:00]} Qe7 {[%emt 0:00:00]} 48. a7 {[%emt 0:00:16]} Nf5 {[%emt 0:00:12]} 49. Qc7 {[%emt 0:00:26]} Qf6 {[%emt 0:00:42]} 50. Qxd8+ {[%emt 0:00:30]} Qxd8 {[%emt 0:00:00]} 51. b7 {[%emt 0:00:00]} 1-0

[Event "Turkish-ch Youth U13 2024"]
[Site "Belek Antalya"]
[Date "2024.01.25"]
[Round "7"]
[White "Dogan, Umut Anil"]
[Black "Avcu, Uraz"]
[Result "1/2-1/2"]
[ECO "E68"]
[WhiteElo "1959"]
[BlackElo "1642"]
[Annotator "TA RC"]
[PlyCount "162"]
[EventDate "2024.01.21"]
[EventType "swiss"]
[EventCountry "TUR"]
[SourceTitle "playchess.com"]
[Source "ChessBase"]
[SourceQuality "1"]
[TimeControl "5400+30"]

{[%evp 45,162,-48,-50,-51,-45,-46,21,7,13,7,13,16,24,10,22,17,25,18,25,25,28,0,6,0,10,0,10,0,47,47,47,47,47,47,47,47,47,16,47,16,47,16,47,16,47,16,47,0,0,0,0,0,0,0,0,0,0,0,0,0,0,0,0,0,0,0,0,0,0,0,0,0,0,0,0,0,0,0,0,0,0,0,0,0,0,0,0,0,0,0,0,0,0,0,0,0,0,0,0,0,0,0,0,0,0,0,0,0,0,0,0,0,0,0,0,0,0,0,0]} 1. d4 {[%emt 0:02:00]} Nf6 {[%emt 0:01:00]} 2. c4 {[%emt 0:00:30]} g6 {[%emt 0:01:30]} 3. g3 {[%emt 0:00:30]} Bg7 {[%emt 0:01:30]} 4. Bg2 {[%emt 0:00:00]} O-O {[%emt 0:00:00]} 5. Nc3 {[%emt 0:00:00]} d6 {[%emt 0:00:00]} 6. Nf3 {[%emt 0:01:30]} Nbd7 {[%emt 0:02:30]} 7. O-O {[%emt 0:00:30]} e5 {[%emt 0:00:30]} 8. e4 {[%emt 0:01:30]} h6 {[%emt 0:01:30]} 9. h3 {[%emt 0:01:30]} Re8 {[%emt 0:03:30]} 10. Re1 {[%emt 0:00:30]} exd4 {[%emt 0:00:30]} 11. Nxd4 {[%emt 0:00:30]} Nc5 {[%emt 0:02:30]} 12. Qc2 {[%emt 0:17:30]} Nfxe4 {[%emt 0:13:30]} 13. Nxe4 {[%emt 0:00:30]} Bxd4 {[%emt 0:00:30]} 14. Bxh6 {[%emt 0:00:30]} Nxe4 {[%emt 0:00:30]} 15. Bxe4 {[%emt 0:16:30]} Qf6 {[%emt 0:13:30]} 16. h4 {[%emt 0:19:30]} Rxe4 {[%emt 0:06:30]} 17. Rxe4 {[%emt 0:00:30]} Bf5 {[%emt 0:00:30]} 18. Rf1 {[%emt 0:00:30]} Bxe4 {[%emt 0:00:30]} 19. Qxe4 {[%emt 0:00:00]} Qe5 {[%emt 0:00:30]} 20. Qf3 {[%emt 0:07:00]} Re8 {[%emt 0:02:30]} 21. Bf4 {[%emt 0:11:56]} Qe4 {[%emt 0:00:00]} 22. Qb3 {[%emt 0:03:26]} Qe2 {[%emt 0:05:00]} 23. Qxb7 {[%emt 0:00:40]} Qxc4 {[%emt 0:01:30]} 24. b3 {[%emt 0:04:31]} Qc2 {[%emt 0:02:30]} 25. Qd5 {[%emt 0:01:02]} Qe4 {[%emt 0:00:30]} (25... Bb6 $1 $15) 26. Qxe4 $11 {[%emt 0:01:45]} Rxe4 {[%emt 0:00:30]} 27. Rd1 {[%emt 0:00:00]} Bb6 {[%emt 0:00:30]} 28. Kf1 {[%emt 0:00:32]} Kg7 {[%emt 0:01:30]} 29. Bc1 {[%emt 0:02:42]} Kf6 {[%emt 0:00:30]} 30. f3 {[%emt 0:02:40]} Re8 {[%emt 0:01:30]} 31. Bb2+ {[%emt 0:00:13]} Kf5 {[%emt 0:03:30]} 32. Rd5+ {[%emt 0:00:30]} Ke6 {[%emt 0:01:30]} 33. Rd3 {[%emt 0:00:33]} f5 {[%emt 0:03:30]} 34. Bd4 {[%emt 0:03:26]} Kf7 {[%emt 0:04:30]} 35. Bf2 {[%emt 0:01:23]} Re5 {[%emt 0:06:30]} 36. b4 {[%emt 0:00:53]} a5 {[%emt 0:04:04]} (36... Bxf2 $11 37. Kxf2 a5) 37. Bxb6 $14 {[%emt 0:00:59]} cxb6 {[%emt 0:00:03]} 38. Rxd6 {[%emt 0:00:37]} axb4 {[%emt 0:00:30]} 39. Rxb6 {[%emt 0:00:30]} Ra5 {[%emt 0:00:30]} 40. Rxb4 {[%emt 0:00:30]} Rxa2 {[%emt 0:00:30]} 41. Rb6 {[%emt 0:00:00]} Rc2 {[%emt 0:01:49]} 42. Ra6 {[%emt 0:00:00]} Rb2 {[%emt 0:00:12]} 43. Rd6 {[%emt 0:00:13]} Rc2 {[%emt 0:00:17]} 44. Rd3 {[%emt 0:00:30]} Rb2 {[%emt 0:00:30]} 45. Rc3 {[%emt 0:00:30]} Ra2 {[%emt 0:00:30]} 46. Re3 {[%emt 0:00:30]} (46. Kg1 $14 {feels stronger.}) 46... f4 $1 $11 {[%emt 0:00:00]} 47. gxf4 {[%emt 0:01:25]} Rh2 {[%emt 0:00:00]} 48. Re4 {[%emt 0:00:21]} Rxh4 {[%emt 0:03:25]} 49. Kg2 {[%emt 0:00:35]} Kf6 {[%emt 0:00:46]} 50. Ra4 {[%emt 0:00:31]} Kf5 {[%emt 0:02:11]} 51. Kg3 {[%emt 0:00:30]} Rh1 {[%emt 0:00:30]} 52. Ra5+ {[%emt 0:00:30]} Kf6 {[%emt 0:00:00]} 53. Ra6+ {[%emt 0:00:00]} Kf5 {[%emt 0:00:00]} 54. Ra5+ {[%emt 0:00:29]} Kf6 {[%emt 0:00:00]} 55. Kf2 {[%emt 0:00:40]} Rb1 {[%emt 0:00:30]} 56. Rc5 {[%emt 0:00:22]} Ra1 {[%emt 0:00:26]} 57. Kg2 {[%emt 0:00:21]} Rb1 {[%emt 0:00:19]} 58. Kh2 {[%emt 0:00:33]} Ra1 {[%emt 0:00:05]} 59. Kh3 {[%emt 0:00:31]} Rh1+ {[%emt 0:00:00]} 60. Kg3 $1 {[%emt 0:00:29]} Rg1+ {[%emt 0:00:10]} 61. Kf2 {[%emt 0:00:30]} Ra1 {[%emt 0:00:30]} 62. Rc8 {[%emt 0:00:00]} Rb1 {[%emt 0:00:00]} 63. Rf8+ {[%emt 0:01:03]} Kg7 {[%emt 0:00:00]} 64. Rd8 {[%emt 0:00:28]} Kf6 {[%emt 0:00:00]} 65. Rc8 {[%emt 0:00:10]} Ra1 {[%emt 0:00:49]} 66. Ke2 {[%emt 0:00:36]} Ra2+ {[%emt 0:00:36]} 67. Ke3 {[%emt 0:01:09]} Ra3+ {[%emt 0:00:30]} 68. Kf2 {[%emt 0:00:00]} Ra2+ {[%emt 0:00:33]} 69. Kg3 {[%emt 0:00:34]} Ra1 {[%emt 0:00:00]} 70. Rc5 {[%emt 0:00:49]} Rb1 {[%emt 0:00:40]} 71. Ra5 {[%emt 0:00:20]} Rc1 {[%emt 0:00:36]} 72. Rb5 {[%emt 0:00:16]} Ra1 {[%emt 0:00:07]} 73. Kg4 {[%emt 0:01:34]} Rg1+ {[%emt 0:00:16]} 74. Kh3 {[%emt 0:00:22]} Rh1+ {[%emt 0:00:30]} 75. Kg3 {[%emt 0:00:00]} Rg1+ {[%emt 0:00:12]} 76. Kf2 {[%emt 0:00:30]} Ra1 {[%emt 0:00:30]} 77. Rb3 {[%emt 0:00:30]} Kf5 {[%emt 0:00:00]} 78. Rb4 {[%emt 0:00:00]} Ra2+ {[%emt 0:00:32]} 79. Kg3 $1 {[%emt 0:00:08]} Ra1 {[%emt 0:00:08]} 80. Rb5+ {[%emt 0:01:53]} Kf6 {[%emt 0:00:02]} 81. Rb6+ {[%emt 0:00:37]} Kf5 {[%emt 0:00:12]} 1/2-1/2

[Event "Turkish-ch Youth U13 2024"]
[Site "Belek Antalya"]
[Date "2024.01.25"]
[Round "7"]
[White "Cankurt, Arda"]
[Black "Bektasoglu, Ali"]
[Result "1-0"]
[ECO "D10"]
[WhiteElo "1779"]
[BlackElo "1507"]
[Annotator "NA RC COMBH"]
[PlyCount "141"]
[EventDate "2024.01.21"]
[EventType "swiss"]
[EventCountry "TUR"]
[SourceTitle "playchess.com"]
[Source "ChessBase"]
[SourceQuality "1"]
[TimeControl "5400+30"]

1. d4 {[%emt 0:01:00]} d5 {[%emt 0:05:00]} 2. c4 {[%emt 0:00:00]} c6 {[%emt 0:00:30]} 3. Nc3 {[%emt 0:00:00]} Nf6 {[%emt 0:00:30]} 4. cxd5 {[%emt 0:00:30]} cxd5 {[%emt 0:00:30]} 5. Bf4 {[%emt 0:00:00]} Nc6 {[%emt 0:04:30]} 6. e3 {[%emt 0:00:00]} Bf5 {[%emt 0:03:30]} 7. Qb3 {[%emt 0:00:30]} Na5 {[%emt 0:18:30]} 8. Qa4+ {[%emt 0:00:00]} Bd7 {[%emt 0:03:30]} 9. Qc2 {[%emt 0:00:00]} Nc6 {[%emt 0:00:30]} 10. Nf3 {[%emt 0:03:30]} a6 {[%emt 0:02:30]} 11. a3 {[%emt 0:03:30]} g6 {[%emt 0:00:00]} 12. Bd3 {[%emt 0:00:30]} Bg7 {[%emt 0:01:00]} 13. O-O {[%emt 0:00:30]} Rc8 {[%emt 0:04:30]} 14. h3 {[%emt 0:06:30]} O-O {[%emt 0:01:30]} 15. Rac1 {[%emt 0:08:30]} Na5 {[%emt 0:03:30]} 16. b4 {[%emt 0:07:30]} Nc4 {[%emt 0:00:30]} 17. Bxc4 {[%emt 0:00:30]} Rxc4 {[%emt 0:00:30]} 18. Ne5 {[%emt 0:00:30]} Rc8 {[%emt 0:04:30]} 19. Qb3 {[%emt 0:12:30]} e6 {[%emt 0:04:30]} 20. Rfd1 {[%emt 0:08:30]} Nh5 {[%emt 0:02:30]} 21. Bh2 {[%emt 0:01:30]} Bxe5 {[%emt 0:03:30]} 22. dxe5 {[%emt 0:04:30]} f5 {[%emt 0:03:30]} 23. Nxd5 {[%emt 0:04:30]} Rxc1 {[%emt 0:06:30]} 24. Rxc1 {[%emt 0:03:30]} Bc8 {[%emt 0:09:01]} 25. Rxc8 {[%emt 0:12:30]} Qxd5 {[%emt 0:02:21]} 26. Qxd5 {[%emt 0:00:30]} exd5 {[%emt 0:00:31]} 27. Rc7 {[%emt 0:00:00]} Rf7 {[%emt 0:03:43]} 28. Rc5 {[%emt 0:00:00]} Rd7 {[%emt 0:02:18]} 29. e6 {[%emt 0:01:30]} Re7 {[%emt 0:00:16]} 30. Rc8+ {[%emt 0:02:30]} Kg7 {[%emt 0:00:09]} 31. g4 {[%emt 0:00:56]} fxg4 {[%emt 0:06:37]} 32. hxg4 {[%emt 0:00:30]} Nf6 {[%emt 0:00:00]} 33. g5 {[%emt 0:04:07]} Ne8 {[%emt 0:00:00]} 34. Be5+ {[%emt 0:02:05]} Kg8 {[%emt 0:00:04]} 35. Bf6 {[%emt 0:02:58]} Rxe6 {[%emt 0:00:28]} 36. Rb8 {[%emt 0:00:10]} b5 {[%emt 0:00:15]} 37. Rd8 {[%emt 0:00:06]} Kf7 {[%emt 0:00:52]} 38. Rd7+ {[%emt 0:01:12]} Kg8 {[%emt 0:03:26]} 39. Bd4 {[%emt 0:00:09]} Re4 {[%emt 0:01:02]} 40. f3 {[%emt 0:00:37]} Re6 {[%emt 0:00:30]} 41. Kf2 {[%emt 0:00:30]} Nd6 {[%emt 0:00:59]} 42. Rg7+ {[%emt 0:00:42]} Kf8 {[%emt 0:00:00]} 43. Rxh7 {[%emt 0:00:28]} Nc4 {[%emt 0:00:18]} 44. Rd7 {[%emt 0:00:02]} Nxa3 {[%emt 0:00:59]} 45. Rxd5 {[%emt 0:00:30]} Kf7 {[%emt 0:00:20]} 46. e4 {[%emt 0:02:21]} Nc4 {[%emt 0:00:24]} 47. Ke2 {[%emt 0:01:25]} Re8 {[%emt 0:01:21]} 48. Kd3 {[%emt 0:03:02]} Ke6 {[%emt 0:00:19]} 49. f4 {[%emt 0:01:17]} Rf8 {[%emt 0:00:43]} 50. Be5 {[%emt 0:00:30]} Rf7 {[%emt 0:01:01]} 51. Kd4 {[%emt 0:00:44]} Rf8 {[%emt 0:00:31]} 52. Bf6 {[%emt 0:00:18]} Rb8 {[%emt 0:01:03]} 53. f5+ {[%emt 0:00:19]} gxf5 {[%emt 0:00:20]} 54. exf5+ {[%emt 0:00:02]} Kf7 {[%emt 0:00:37]} 55. Rd7+ {[%emt 0:00:03]} Kg8 {[%emt 0:00:38]} 56. Rg7+ {[%emt 0:00:30]} Kf8 {[%emt 0:00:30]} 57. Rh7 {[%emt 0:00:30]} Rb6 {[%emt 0:00:30]} 58. Kc5 {[%emt 0:00:00]} Kg8 {[%emt 0:00:00]} 59. Rh4 {[%emt 0:00:51]} Rd6 {[%emt 0:01:21]} 60. Rxc4 {[%emt 0:01:34]} Rd1 {[%emt 0:00:19]} 61. Rh4 {[%emt 0:00:20]} Rf1 {[%emt 0:00:15]} 62. Kd6 {[%emt 0:00:23]} Rd1+ {[%emt 0:00:30]} 63. Ke6 {[%emt 0:00:30]} Re1+ {[%emt 0:00:30]} 64. Be5 {[%emt 0:00:00]} Rxe5+ {[%emt 0:00:06]} 65. Kxe5 {[%emt 0:00:00]} Kg7 {[%emt 0:00:30]} 66. Rh6 {[%emt 0:00:00]} a5 {[%emt 0:00:26]} 67. bxa5 {[%emt 0:00:00]} b4 {[%emt 0:00:30]} 68. a6 {[%emt 0:00:27]} b3 {[%emt 0:00:30]} 69. a7 {[%emt 0:00:30]} b2 {[%emt 0:00:30]} 70. a8=Q {[%emt 0:00:00]} b1=Q {[%emt 0:00:00]} 71. Qh8+ {[%emt 0:00:00]} 1-0

[Event "Turkish-ch Youth U13 2024"]
[Site "Belek Antalya"]
[Date "2024.01.25"]
[Round "7"]
[White "Saricam, Ege"]
[Black "Turker, Esat Tuna"]
[Result "1/2-1/2"]
[ECO "C02"]
[WhiteElo "1626"]
[BlackElo "1829"]
[Annotator "NA RC COMBH"]
[PlyCount "125"]
[EventDate "2024.01.21"]
[EventType "swiss"]
[EventCountry "TUR"]
[SourceTitle "playchess.com"]
[Source "ChessBase"]
[SourceQuality "1"]
[TimeControl "5400+30"]

1. e4 {[%emt 0:01:00]} e6 {[%emt 0:01:00]} 2. d4 {[%emt 0:00:30]} d5 {[%emt 0:00:30]} 3. e5 {[%emt 0:00:30]} c5 {[%emt 0:00:30]} 4. c3 {[%emt 0:00:30]} Qb6 {[%emt 0:00:00]} 5. Bd3 {[%emt 0:00:00]} Bd7 {[%emt 0:00:00]} 6. Nf3 {[%emt 0:00:00]} cxd4 {[%emt 0:03:30]} 7. cxd4 {[%emt 0:00:00]} Nc6 {[%emt 0:01:30]} 8. Bc2 {[%emt 0:16:00]} Nb4 {[%emt 0:17:30]} 9. Nc3 {[%emt 0:03:30]} Nxc2+ {[%emt 0:01:30]} 10. Qxc2 {[%emt 0:00:00]} Qa6 {[%emt 0:04:30]} 11. Bd2 {[%emt 0:02:00]} Rc8 {[%emt 0:00:30]} 12. Qb3 {[%emt 0:04:30]} Ne7 {[%emt 0:03:30]} 13. a4 {[%emt 0:01:30]} Nc6 {[%emt 0:07:30]} 14. Nb5 {[%emt 0:14:30]} Na5 {[%emt 0:06:30]} 15. Bxa5 {[%emt 0:10:30]} Qxa5+ {[%emt 0:02:30]} 16. Nc3 {[%emt 0:00:30]} Qb4 {[%emt 0:06:30]} 17. Qxb4 {[%emt 0:02:30]} Bxb4 {[%emt 0:00:30]} 18. Kd2 {[%emt 0:00:00]} Ke7 {[%emt 0:01:30]} 19. Kd3 {[%emt 0:01:00]} Rc6 {[%emt 0:08:30]} 20. Rhc1 {[%emt 0:05:30]} Rhc8 {[%emt 0:02:30]} 21. Nd2 {[%emt 0:02:30]} Ra6 {[%emt 0:08:30]} 22. b3 {[%emt 0:06:30]} Rac6 {[%emt 0:04:17]} 23. Ne2 {[%emt 0:01:30]} Rxc1 {[%emt 0:00:30]} 24. Rxc1 {[%emt 0:00:30]} Rxc1 {[%emt 0:00:30]} 25. Nxc1 {[%emt 0:00:30]} b5 {[%emt 0:00:00]} 26. axb5 {[%emt 0:03:30]} Bxb5+ {[%emt 0:00:00]} 27. Kc2 {[%emt 0:00:30]} f6 {[%emt 0:01:22]} 28. Na2 {[%emt 0:01:30]} Ba5 {[%emt 0:02:23]} 29. f4 {[%emt 0:01:30]} Be8 {[%emt 0:01:49]} 30. b4 {[%emt 0:01:30]} Bb6 {[%emt 0:01:01]} 31. Kc3 {[%emt 0:01:30]} fxe5 {[%emt 0:02:17]} 32. fxe5 {[%emt 0:00:30]} Bb5 {[%emt 0:05:09]} 33. Nb3 {[%emt 0:00:30]} Kf7 {[%emt 0:02:00]} 34. Na5 {[%emt 0:00:47]} Bf1 {[%emt 0:00:30]} 35. g3 {[%emt 0:01:45]} Ke7 {[%emt 0:01:21]} 36. Nc1 {[%emt 0:00:57]} Kd7 {[%emt 0:02:08]} 37. Nb7 {[%emt 0:01:12]} Bb5 {[%emt 0:02:16]} 38. Nb3 {[%emt 0:02:11]} Ke7 {[%emt 0:00:30]} 39. Nd6 {[%emt 0:01:11]} Bd7 {[%emt 0:01:55]} 40. Nc5 {[%emt 0:01:25]} Bc6 {[%emt 0:00:49]} 41. b5 {[%emt 0:03:01]} Bd7 {[%emt 0:00:30]} 42. Kb4 {[%emt 0:00:07]} Bc7 {[%emt 0:00:30]} 43. Ndb7 {[%emt 0:00:30]} Bb6 {[%emt 0:00:30]} 44. Na5 {[%emt 0:00:15]} Bc8 {[%emt 0:00:37]} 45. Nc6+ {[%emt 0:00:59]} Ke8 {[%emt 0:00:11]} 46. Kc3 {[%emt 0:06:23]} Bd7 {[%emt 0:00:38]} 47. Kb4 {[%emt 0:02:39]} Bc8 {[%emt 0:00:14]} 48. Na5 {[%emt 0:01:05]} Ke7 {[%emt 0:00:42]} 49. Na4 {[%emt 0:01:48]} Bd7 {[%emt 0:00:48]} 50. Nxb6 {[%emt 0:00:30]} axb6 {[%emt 0:00:30]} 51. Nb7 {[%emt 0:00:09]} Bc8 {[%emt 0:00:34]} 52. Nd6 {[%emt 0:00:42]} Bd7 {[%emt 0:00:13]} 53. Kc3 {[%emt 0:00:07]} Kd8 {[%emt 0:00:47]} 54. Kd3 {[%emt 0:00:30]} Be8 {[%emt 0:00:00]} 55. Ke3 {[%emt 0:00:15]} Bg6 {[%emt 0:00:12]} 56. Kf4 {[%emt 0:00:21]} Kd7 {[%emt 0:00:29]} 57. h4 {[%emt 0:00:20]} Bd3 {[%emt 0:00:31]} 58. Kg5 {[%emt 0:00:53]} h6+ {[%emt 0:01:19]} 59. Kh5 {[%emt 0:00:14]} Ke7 {[%emt 0:00:20]} 60. g4 {[%emt 0:01:05]} Kf8 {[%emt 0:00:31]} 61. g5 {[%emt 0:01:48]} Be2+ {[%emt 0:00:54]} 62. Kg6 {[%emt 0:00:30]} Bd3+ {[%emt 0:00:30]} 63. Kh5 {[%emt 0:00:00]} 1/2-1/2

[Event "Turkish-ch Youth U13 2024"]
[Site "Belek Antalya"]
[Date "2024.01.25"]
[Round "7"]
[White "Gunaydin, Mehmet Emir"]
[Black "Buyuk, Eymen Eren"]
[Result "1/2-1/2"]
[ECO "B22"]
[WhiteElo "1471"]
[BlackElo "2056"]
[Annotator "NA RC"]
[PlyCount "105"]
[EventDate "2024.01.21"]
[EventType "swiss"]
[EventCountry "TUR"]
[SourceTitle "playchess.com"]
[Source "ChessBase"]
[SourceQuality "1"]
[TimeControl "5400+30"]

1. e4 {[%emt 0:01:00]} c5 {[%emt 0:01:00]} 2. c3 {[%emt 0:00:30]} Nf6 {[%emt 0:00:30]} 3. e5 {[%emt 0:00:30]} Nd5 {[%emt 0:00:30]} 4. d4 {[%emt 0:00:30]} cxd4 {[%emt 0:00:00]} 5. Nf3 {[%emt 0:00:00]} d6 {[%emt 0:00:00]} 6. exd6 {[%emt 0:02:00]} e6 {[%emt 0:08:30]} 7. cxd4 {[%emt 0:12:30]} Bxd6 {[%emt 0:00:00]} 8. Be2 {[%emt 0:03:30]} O-O {[%emt 0:01:00]} 9. O-O {[%emt 0:00:30]} b6 {[%emt 0:03:30]} 10. Nc3 {[%emt 0:04:30]} Bb7 {[%emt 0:01:30]} 11. Be3 {[%emt 0:06:30]} Nd7 {[%emt 0:03:30]} 12. Rc1 {[%emt 0:10:30]} Nxe3 {[%emt 0:05:30]} 13. fxe3 {[%emt 0:00:30]} Nf6 {[%emt 0:00:30]} 14. Nd2 {[%emt 0:12:30] [#]} Nd5 $15 {[%emt 0:17:30]} ({Black should try} 14... Qb8 $1 $17 15. Kh1 Bxh2) 15. Nxd5 {[%emt 0:12:30]} exd5 {[%emt 0:00:00]} 16. Bd3 {[%emt 0:07:30]} Qh4 {[%emt 0:11:00]} 17. Nf3 {[%emt 0:03:30]} Qh6 {[%emt 0:01:30]} 18. Qd2 {[%emt 0:06:49]} Rae8 {[%emt 0:00:30]} 19. Rce1 {[%emt 0:01:36]} Bc8 {[%emt 0:02:30]} 20. g3 {[%emt 0:03:59]} Bh3 {[%emt 0:02:30]} 21. Rf2 {[%emt 0:00:11]} f5 {[%emt 0:19:30]} 22. Bf1 {[%emt 0:04:44]} Bxf1 {[%emt 0:02:12]} 23. Rfxf1 {[%emt 0:00:34]} Re4 {[%emt 0:00:37]} 24. Rf2 {[%emt 0:01:17]} Rfe8 {[%emt 0:00:58]} 25. Rfe2 {[%emt 0:01:00]} Qg6 {[%emt 0:00:59]} 26. Rg2 {[%emt 0:01:32]} Qg4 {[%emt 0:01:35]} 27. Qf2 {[%emt 0:00:32]} Qh5 {[%emt 0:04:29]} 28. Nd2 {[%emt 0:02:05]} R4e7 {[%emt 0:00:09]} 29. Qe2 {[%emt 0:00:12]} Qf7 {[%emt 0:02:16]} 30. Qf3 {[%emt 0:00:45]} f4 {[%emt 0:01:51]} 31. e4 {[%emt 0:00:58]} fxg3 {[%emt 0:03:25]} 32. Qxf7+ {[%emt 0:00:32]} Kxf7 {[%emt 0:00:07]} 33. e5 {[%emt 0:00:30]} gxh2+ {[%emt 0:00:30]} 34. Rxh2 {[%emt 0:00:30]} Bb4 {[%emt 0:00:30]} 35. Rf1+ {[%emt 0:00:30]} Kg8 {[%emt 0:00:30]} 36. Nf3 {[%emt 0:00:08]} Rc7 {[%emt 0:00:00]} 37. Ng5 {[%emt 0:00:46]} h6 {[%emt 0:00:33]} 38. Nf3 {[%emt 0:00:30]} Be7 {[%emt 0:01:15]} 39. Kh1 {[%emt 0:00:18]} Rf8 {[%emt 0:00:48]} 40. Rhf2 {[%emt 0:00:35]} g5 {[%emt 0:01:08]} 41. Kg2 {[%emt 0:00:22]} h5 {[%emt 0:00:27]} 42. Nd2 {[%emt 0:01:10]} Rxf2+ {[%emt 0:00:33]} 43. Rxf2 {[%emt 0:00:09]} g4 {[%emt 0:00:17]} 44. Nf1 {[%emt 0:00:12]} Bh4 {[%emt 0:04:48]} 45. Re2 {[%emt 0:00:29]} Bg5 {[%emt 0:00:39]} 46. Ng3 {[%emt 0:00:48]} h4 {[%emt 0:00:42]} 47. Nf5 {[%emt 0:00:30]} Rc1 {[%emt 0:00:00]} 48. e6 {[%emt 0:00:21]} h3+ {[%emt 0:00:00]} 49. Kg3 {[%emt 0:00:44]} Rg1+ {[%emt 0:00:11]} 50. Kh2 {[%emt 0:00:23]} Rg2+ {[%emt 0:02:13]} 51. Rxg2 {[%emt 0:00:30]} hxg2 {[%emt 0:00:10]} 52. Kxg2 {[%emt 0:00:15]} Kf8 {[%emt 0:00:30]} 53. Kg3 {[%emt 0:00:37]} 1/2-1/2